[Event "Championnat National du Sénégal"]
[Site "Arène National, Pikine, Senegal"]
[Date "2022.11.13"]
[Round "4.2"]
[White "CM Wane, Al Hassane"]
[Black "Lesbros, Bernard"]
[Result "0-1"]
[TimeControl "01.30 fb .30"]
[WhiteElo "1789"]
[BlackElo "1878"]

1. e4 {[%emt 00:00:06]} c5 {[%clk 01:27:14]} {[%emt 00:03:40]} 2. Nc3 {[%clk
01:30:49]} {[%emt 00:00:12]} Nc6 {[%clk 01:27:17]} {[%emt 00:00:26]} 3. f4
{[%clk 01:31:06]} {[%emt 00:00:13]} e6 {[%clk 01:25:21]} {[%emt 00:02:26]} 4.
Nf3 {[%clk 01:31:24]} {[%emt 00:00:12]} g6 {[%clk 01:23:41]} {[%emt 00:02:09]}
5. Bc4 {[%clk 01:31:20]} {[%emt 00:00:34]} Bg7 {[%clk 01:23:56]} {[%emt
00:00:15]} 6. O-O {[%emt 00:00:11]} Nge7 {[%emt 00:00:25]} 7. Qe1 {[%clk
01:31:03]} {[%emt 00:00:11]} Nd4 {[%clk 01:22:48]} {[%emt 00:01:38]} 8. Nxd4
{[%clk 01:28:48]} {[%emt 00:02:46]} cxd4 {[%clk 01:18:55]} {[%emt 00:04:22]} 9.
Nb5 {[%clk 01:23:03]} {[%emt 00:06:15]} O-O {[%clk 01:01:45]} {[%emt 00:17:40]}
10. e5 {[%clk 01:07:07]} {[%emt 00:16:26]} d5 {[%clk 00:53:07]} {[%emt
00:09:07]} 11. exd6 {[%clk 00:57:42]} {[%emt 00:09:56]} Nf5 {[%clk 00:52:03]}
{[%emt 00:01:34]} 12. d3 {[%clk 00:54:37]} {[%emt 00:03:35]} a6 {[%clk
00:49:29]} {[%emt 00:03:03]} 13. Na3 {[%clk 00:40:34]} {[%emt 00:14:33]} b5
{[%clk 00:49:05]} {[%emt 00:00:54]} 14. Bb3 {[%clk 00:39:59]} {[%emt 00:01:06]}
Qxd6 {[%clk 00:47:16]} {[%emt 00:02:18]} 15. Bd2 {[%clk 00:40:18]} {[%emt
00:00:09]} Bb7 {[%clk 00:46:15]} {[%emt 00:01:33]} 16. Qf2 {[%clk 00:37:13]}
{[%emt 00:03:36]} Qc6 {[%clk 00:44:23]} {[%emt 00:02:21]} 17. Qf3 {[%clk
00:35:15]} {[%emt 00:02:28]} Qb6 {[%clk 00:39:36]} {[%emt 00:06:22]} 18. Qe2
{[%clk 00:35:03]} h5 {[%clk 00:32:59]} {[%emt 00:06:44]} 19. Kh1 {[%clk
00:32:17]} {[%emt 00:03:16]} Nh4 {[%clk 00:28:16]} {[%emt 00:05:13]} 20. Rf2
{[%clk 00:32:21]} {[%emt 00:00:26]} Rfe8 {[%clk 00:26:42]} {[%emt 00:02:04]} 21.
c3 {[%clk 00:30:53]} {[%emt 00:01:59]} dxc3 {[%clk 00:23:16]} {[%emt 00:03:56]}
22. Bxc3 {[%clk 00:30:52]} {[%emt 00:00:30]} Bxc3 {[%clk 00:22:10]} {[%emt
00:01:37]} 23. bxc3 {[%clk 00:31:12]} {[%emt 00:00:10]} Qc5 {[%clk 00:20:34]}
{[%emt 00:02:06]} 24. Nb1 {[%clk 00:30:44]} {[%emt 00:00:59]} e5 {[%clk
00:20:18]} {[%emt 00:00:46]} 25. fxe5 {[%clk 00:30:38]} {[%emt 00:00:36]} Rxe5
{[%clk 00:14:16]} {[%emt 00:06:32]} 26. Bxf7+ {[%clk 00:31:00]} {[%emt
00:00:08]} Kg7 {[%clk 00:14:02]} {[%emt 00:00:43]} 27. Qf1 {[%clk 00:31:17]}
{[%emt 00:00:12]} Qe7 {[%clk 00:10:23]} {[%emt 00:04:10]} 28. Nd2 {[%clk
00:29:51]} {[%emt 00:01:56]} Rf8 {[%clk 00:07:52]} {[%emt 00:03:01]} 29. d4
{[%clk 00:23:27]} {[%emt 00:06:55]} Rf5 {[%clk 00:05:05]} {[%emt 00:03:17]} 30.
Qe2 {[%clk 00:16:31]} {[%emt 00:07:25]} Qxe2 {[%clk 00:04:25]} {[%emt
00:01:11]} 31. Rxe2 {[%clk 00:16:58]} {[%emt 00:00:03]} R8xf7 {[%clk 00:04:37]}
{[%emt 00:00:18]} 32. Kg1 {[%clk 00:17:23]} {[%emt 00:00:05]} Bxg2 {[%clk
00:04:24]} {[%emt 00:00:42]} 33. Ne4 {[%clk 00:16:07]} {[%emt 00:01:46]} Bxe4
{[%clk 00:04:35]} {[%emt 00:00:20]} 34. Rxe4 {[%clk 00:16:36]} {[%emt
00:00:01]} Rg5+ {[%clk 00:04:21]} {[%emt 00:00:44]} 35. Kh1 {[%clk 00:16:53]}
{[%emt 00:00:12]} Rg4 {[%clk 00:04:15]} {[%emt 00:00:37]} 36. Rxg4 {[%clk
00:15:30]} {[%emt 00:01:53]} hxg4 {[%clk 00:04:43]} {[%emt 00:00:02]} 37. Kg1
{[%clk 00:14:21]} {[%emt 00:01:39]} Rf3 {[%clk 00:04:05]} {[%emt 00:01:06]} 38.
Rc1 {[%clk 00:14:16]} {[%emt 00:00:35]} Rd3 {[%clk 00:04:21]} {[%emt 00:00:15]}
39. Rc2 {[%clk 00:14:17]} {[%emt 00:00:29]} Kf6 {[%clk 00:04:27]} {[%emt
00:00:23]} 40. c4 {[%clk 00:11:26]} {[%emt 00:03:22]} bxc4 {[%clk 00:04:45]}
{[%emt 00:00:11]} 41. Rxc4 {[%clk 00:11:36]} {[%emt 00:00:20]} Rd2 {[%clk
00:04:29]} {[%emt 00:00:46]} 42. d5 {[%clk 00:06:17]} {[%emt 00:05:48]} Nf3+
{[%clk 00:04:40]} {[%emt 00:00:19]} 43. Kf1 {[%clk 00:06:08]} {[%emt 00:00:39]}
Nxh2+ {[%clk 00:04:55]} {[%emt 00:00:16]} 0-1

[Event "Championnat National du Sénégal"]
[Site "Arène National, Pikine, Senegal"]
[Date "2022.11.13"]
[Round "4.1"]
[White "Diop, Wara"]
[Black "Ba, El Hadji Seydou Nourou"]
[Result "1-0"]
[TimeControl "01.30 fb .30"]
[WhiteElo "1636"]
[BlackElo "1644"]

1. e4 {[%clk 01:30:26]} {[%emt 00:00:33]} c5 {[%clk 01:30:55]} {[%emt
00:00:05]} 2. Nc3 {[%clk 01:30:13]} {[%emt 00:00:42]} Nc6 {[%clk 01:30:49]}
{[%emt 00:00:37]} 3. f4 {[%clk 01:30:25]} {[%emt 00:00:17]} g6 {[%clk
01:30:15]} {[%emt 00:01:05]} 4. Bc4 {[%clk 01:30:31]} {[%emt 00:00:23]} Bg7
{[%clk 01:30:07]} {[%emt 00:00:38]} 5. Nf3 {[%clk 01:30:43]} {[%emt 00:00:18]}
e6 {[%clk 01:29:56]} {[%emt 00:00:42]} 6. f5 {[%clk 01:28:37]} {[%emt
00:02:36]} Nge7 {[%clk 01:27:50]} {[%emt 00:02:35]} 7. O-O {[%clk 01:23:23]}
{[%emt 00:05:43]} exf5 {[%clk 01:12:21]} {[%emt 00:15:59]} 8. Qe1 {[%clk
01:21:04]} {[%emt 00:02:48]} O-O {[%clk 01:09:29]} {[%emt 00:03:24]} 9. d3
{[%clk 01:19:40]} {[%emt 00:01:53]} Na5 {[%clk 01:05:49]} {[%emt 00:04:10]} 10.
Bg5 {[%clk 01:17:16]} {[%emt 00:02:53]} Nxc4 {[%clk 01:03:35]} {[%emt
00:02:46]} 11. Bxe7 {[%clk 01:14:28]} {[%emt 00:03:16]} Qxe7 {[%clk 01:02:57]}
{[%emt 00:01:08]} 12. Nd5 {[%clk 01:14:38]} {[%emt 00:00:21]} Qd6 {[%clk
00:56:28]} {[%emt 00:06:51]} 13. dxc4 {[%clk 01:14:29]} {[%emt 00:00:45]} Re8
{[%clk 00:52:29]} {[%emt 00:04:30]} 14. e5 {[%clk 01:07:17]} {[%emt 00:07:43]}
Bxe5 {[%clk 00:51:02]} {[%emt 00:01:58]} 15. Nxe5 {[%clk 01:03:09]} {[%emt
00:04:37]} Rxe5 {[%clk 00:50:39]} {[%emt 00:00:53]} 16. Qh4 {[%clk 00:58:18]}
{[%emt 00:05:20]} b5 {[%clk 00:48:10]} {[%emt 00:03:00]} 17. Rad1 {[%clk
00:52:39]} {[%emt 00:06:08]} Kg7 {[%clk 00:47:22]} {[%emt 00:01:18]} 18. Qf4
{[%clk 00:48:22]} {[%emt 00:04:47]} f6 {[%clk 00:29:23]} {[%emt 00:19:42]} 19.
Nc3 {[%clk 00:43:35]} {[%emt 00:04:04]} Qc6 {[%clk 00:25:34]} {[%emt 00:04:20]}
20. cxb5 {[%clk 00:41:40]} {[%emt 00:02:25]} Qe6 {[%clk 00:25:31]} {[%emt
00:00:32]} 21. Qf3 {[%clk 00:40:10]} {[%emt 00:02:00]} Rb8 {[%clk 00:25:05]}
{[%emt 00:00:56]} 22. Nd5 {[%clk 00:39:32]} {[%emt 00:01:08]} c4 {[%clk
00:22:18]} {[%emt 00:03:10]} 23. Nc3 {[%clk 00:34:43]} {[%emt 00:05:27]} Bb7
{[%clk 00:18:44]} {[%emt 00:04:04]} 24. Qg3 {[%clk 00:33:35]} {[%emt 00:01:37]}
Re8 {[%clk 00:16:57]} {[%emt 00:02:17]} 25. a4 {[%clk 00:31:52]} {[%emt
00:02:14]} f4 {[%clk 00:13:18]} {[%emt 00:04:09]} 26. Qxf4 {[%clk 00:23:59]}
{[%emt 00:03:38]} Re7 {[%clk 00:13:00]} {[%emt 00:05:31]} 27. a5 {[%clk
00:23:54]} {[%emt 00:00:37]} Rg5 {[%clk 00:11:51]} {[%emt 00:01:39]} 28. Rd2
{[%clk 00:22:48]} {[%emt 00:01:35]} Rf5 {[%clk 00:11:32]} {[%emt 00:00:50]} 29.
Qg3 {[%clk 00:21:49]} {[%emt 00:01:27]} Rxf1+ {[%clk 00:07:12]} {[%emt
00:04:51]} 30. Kxf1 {[%clk 00:21:44]} {[%emt 00:00:33]} d5 {[%clk 00:07:08]}
{[%emt 00:00:36]} 31. Qf2 {[%clk 00:19:51]} {[%emt 00:02:21]} Qd6 {[%clk
00:06:38]} {[%emt 00:01:01]} 32. g3 {[%clk 00:18:01]} {[%emt 00:02:20]} a6
{[%clk 00:04:08]} {[%emt 00:03:01]} 33. bxa6 {[%clk 00:14:08]} {[%emt
00:04:23]} Bxa6 {[%clk 00:04:16]} {[%emt 00:00:22]} 34. Rxd5 {[%clk 00:12:18]}
{[%emt 00:02:19]} Qxd5 {[%clk 00:02:18]} {[%emt 00:02:29]} 35. Nxd5 {[%clk
00:11:55]} {[%emt 00:00:52]} c3+ {[%clk 00:02:41]} {[%emt 00:00:09]} 36. Kg1
{[%clk 00:11:33]} {[%emt 00:00:50]} 1-0

[Event "Championnat National du Sénégal"]
[Site "Arène National, Pikine, Senegal"]
[Date "2022.11.13"]
[Round "4.3"]
[White "Koné, Sidy"]
[Black "Valerevna, Nadezhda Marochkina"]
[Result "1/2-1/2"]
[TimeControl "01.30 fb .30"]
[WhiteElo "1400"]
[BlackElo "1668"]

1. e4 {[%clk 01:30:57]} {[%emt 00:00:02]} c6 {[%clk 01:28:32]} {[%emt
00:02:28]} 2. d4 {[%clk 01:31:20]} {[%emt 00:00:06]} d5 {[%clk 01:28:53]}
{[%emt 00:00:10]} 3. f3 {[%clk 01:31:35]} {[%emt 00:00:15]} dxe4 {[%clk
01:27:53]} {[%emt 00:01:31]} 4. fxe4 {[%clk 01:31:49]} {[%emt 00:00:16]} e5
{[%clk 01:24:48]} {[%emt 00:03:35]} 5. Nf3 {[%clk 01:32:11]} {[%emt 00:00:08]}
exd4 {[%clk 01:23:01]} {[%emt 00:02:17]} 6. Bc4 {[%clk 01:32:32]} {[%emt
00:00:09]} Be7 {[%clk 01:18:30]} {[%emt 00:05:01]} 7. O-O {[%clk 01:31:25]}
{[%emt 00:01:37]} Nf6 {[%clk 01:16:41]} {[%emt 00:02:20]} 8. Ng5 {[%clk
01:28:13]} {[%emt 00:03:42]} Qb6 {[%clk 00:55:59]} {[%emt 00:21:12]} 9. Bxf7+
{[%clk 01:25:36]} {[%emt 00:03:07]} Kd8 {[%clk 00:56:09]} {[%emt 00:00:19]} 10.
Be6 {[%clk 01:18:59]} {[%emt 00:07:07]} Bxe6 {[%clk 00:42:38]} {[%emt
00:14:02]} 11. Nxe6+ {[%clk 01:19:14]} {[%emt 00:00:15]} Kc8 {[%clk 00:42:37]}
{[%emt 00:00:31]} 12. Nxg7 {[%clk 01:11:03]} {[%emt 00:08:41]} Rg8 {[%clk
00:40:49]} {[%emt 00:02:17]} 13. Rxf6 {[%clk 01:07:23]} {[%emt 00:04:10]} Bxf6
{[%clk 00:38:26]} {[%emt 00:02:53]} 14. Nf5 {[%clk 00:51:06]} {[%emt 00:16:47]}
Nd7 {[%clk 00:23:23]} {[%emt 00:17:51]} 15. Na3 {[%clk 00:48:49]} {[%emt
00:00:29]} Ne5 {[%clk 00:20:44]} {[%emt 00:03:09]} 16. Rb1 {[%clk 00:42:42]}
{[%emt 00:06:36]} Ng4 {[%clk 00:14:55]} {[%emt 00:06:20]} 17. Nc4 {[%clk
00:38:10]} {[%emt 00:05:02]} Qc7 {[%clk 00:11:11]} {[%emt 00:04:14]} 18. g3
{[%clk 00:35:05]} {[%emt 00:03:34]} Be5 {[%clk 00:08:47]} {[%emt 00:02:55]} 19.
Nxe5 {[%clk 00:30:51]} {[%emt 00:04:43]} Nxe5 {[%clk 00:08:29]} {[%emt
00:00:48]} 20. Bf4 {[%clk 00:27:45]} {[%emt 00:03:36]} Re8 {[%clk 00:08:30]}
{[%emt 00:00:29]} 21. Qh5 {[%clk 00:18:50]} {[%emt 00:09:25]} Re6 {[%clk
00:06:50]} {[%emt 00:02:10]} 22. Nxd4 {[%clk 00:15:34]} {[%emt 00:03:46]} Re7
{[%clk 00:05:31]} {[%emt 00:01:50]} 23. Nf5 {[%clk 00:15:15]} {[%emt 00:00:49]}
Re6 {[%clk 00:05:38]} {[%emt 00:00:23]} 24. Nd4 {[%clk 00:14:46]} {[%emt
00:00:59]} Re7 {[%clk 00:05:38]} {[%emt 00:00:30]} 25. Nf5 {[%clk 00:14:55]}
{[%emt 00:00:21]} Re6 {[%clk 00:05:52]} {[%emt 00:00:16]} 1/2-1/2

[Event "Championnat National du Sénégal"]
[Site "Arène National, Pikine, Senegal"]
[Date "2022.11.13"]
[Round "4.5"]
[White "Diankha, Bara"]
[Black "Ly, Abdoulaye Aziz"]
[Result "0-1"]
[TimeControl "01.30 fb .30"]
[WhiteElo "1400"]
[BlackElo "1400"]

1. c3 {[%clk 01:30:50]} {[%emt 00:00:09]} d5 {[%clk 01:29:29]} {[%emt
00:01:30]} 2. d4 {[%clk 01:30:58]} {[%emt 00:00:24]} e6 {[%clk 01:28:27]}
{[%emt 00:01:31]} 3. Nf3 {[%clk 01:31:05]} {[%emt 00:00:24]} c5 {[%clk
01:27:33]} {[%emt 00:01:24]} 4. Bf4 {[%clk 01:30:39]} {[%emt 00:00:56]} Qb6
{[%clk 01:25:54]} {[%emt 00:02:10]} 5. Bc1 {[%clk 01:26:43]} {[%emt 00:04:26]}
Nf6 {[%clk 01:25:23]} {[%emt 00:01:00]} 6. e3 {[%clk 01:24:59]} {[%emt
00:02:15]} Nbd7 {[%clk 01:23:49]} {[%emt 00:02:03]} 7. Be2 {[%clk 01:24:31]}
{[%emt 00:00:58]} Bd6 {[%clk 01:20:26]} {[%emt 00:03:52]} 8. Nbd2 {[%clk
01:23:37]} {[%emt 00:01:25]} O-O {[%clk 01:19:31]} {[%emt 00:01:25]} 9. O-O
{[%emt 00:02:54]} e5 {[%emt 00:00:56]} 10. dxe5 {[%clk 01:18:00]} {[%emt
00:02:18]} Nxe5 {[%clk 01:19:53]} {[%emt 00:00:08]} 11. Nxe5 {[%clk 01:18:07]}
{[%emt 00:00:22]} Bxe5 {[%clk 01:20:22]} {[%emt 00:00:02]} 12. Nf3 {[%clk
01:18:19]} {[%emt 00:00:18]} Bc7 {[%clk 01:19:19]} {[%emt 00:01:33]} 13. Bd3
{[%clk 01:16:49]} {[%emt 00:02:00]} Bg4 {[%clk 01:16:40]} {[%emt 00:03:08]} 14.
Bc2 {[%clk 01:15:02]} {[%emt 00:02:17]} Qd6 {[%clk 01:16:02]} {[%emt 00:01:08]}
15. g3 {[%clk 01:13:57]} {[%emt 00:01:35]} Qe6 {[%clk 01:14:38]} {[%emt
00:01:55]} 16. Bd3 {[%clk 01:10:06]} {[%emt 00:04:22]} h6 {[%clk 01:13:58]}
{[%emt 00:01:09]} 17. Re1 {[%clk 01:07:12]} {[%emt 00:03:24]} Rad8 {[%clk
01:11:44]} {[%emt 00:02:44]} 18. Bf1 {[%clk 01:07:12]} {[%emt 00:00:30]} d4
{[%clk 01:09:32]} {[%emt 00:02:43]} 19. exd4 {[%clk 01:05:58]} {[%emt
00:01:44]} Bxf3 {[%clk 01:09:52]} {[%emt 00:00:10]} 20. Rxe6 {[%clk 00:57:40]}
{[%emt 00:08:47]} Bxd1 {[%clk 01:10:19]} {[%emt 00:00:03]} 21. Re7 {[%clk
00:58:05]} {[%emt 00:00:05]} Bb6 {[%clk 01:09:56]} {[%emt 00:00:53]} 22. Bxh6
{[%clk 00:56:42]} {[%emt 00:01:53]} Bf3 {[%clk 01:09:42]} {[%emt 00:00:43]} 23.
Bg5 {[%clk 00:50:39]} {[%emt 00:06:33]} cxd4 {[%clk 01:06:20]} {[%emt
00:03:53]} 24. Bxf6 {[%clk 00:49:54]} {[%emt 00:01:15]} gxf6 {[%clk 01:06:48]}
{[%emt 00:00:02]} 25. cxd4 {[%clk 00:49:45]} {[%emt 00:00:39]} Rxd4 {[%clk
01:06:23]} {[%emt 00:00:55]} 26. Bg2 {[%clk 00:50:02]} {[%emt 00:00:13]} Bxg2
{[%clk 01:06:05]} {[%emt 00:00:48]} 27. Kxg2 {[%emt 00:00:03]} Rd2 {[%clk
01:06:10]} {[%emt 00:00:23]} 28. Rb1 {[%clk 00:50:43]} {[%emt 00:00:18]} Rxf2+
{[%clk 01:06:24]} {[%emt 00:00:16]} 29. Kh3 {[%clk 00:51:01]} {[%emt 00:00:10]}
Kg7 {[%clk 01:06:20]} {[%emt 00:00:36]} 30. Rxb7 {[%clk 00:51:25]} {[%emt
00:00:06]} Rh8+ {[%clk 01:06:29]} {[%emt 00:00:20]} 31. Kg4 {[%clk 00:51:54]}
{[%emt 00:00:02]} Rhxh2 {[%clk 01:05:53]} {[%emt 00:01:07]} 32. Rd1 {[%clk
00:50:45]} {[%emt 00:01:39]} Kg6 {[%clk 01:05:30]} {[%emt 00:00:53]} 33. Rd6
{[%clk 00:49:17]} {[%emt 00:01:57]} Rh5 {[%clk 01:04:40]} {[%emt 00:01:19]} 34.
Rb8 {[%clk 00:46:31]} {[%emt 00:03:17]} Rg5+ {[%clk 01:04:01]} {[%emt
00:01:08]} 35. Kh3 {[%clk 00:46:58]} {[%emt 00:00:03]} Kg7 {[%clk 01:03:52]}
{[%emt 00:00:39]} 36. Rd3 {[%clk 00:41:30]} {[%emt 00:05:58]} Rxb2 {[%clk
01:04:01]} {[%emt 00:00:21]} 37. Rc3 {[%clk 00:40:33]} {[%emt 00:01:28]} Rxa2
{[%emt 00:03:02]} 38. Rcc8 {[%clk 00:40:48]} f5 {[%clk 01:01:57]} {[%emt
00:00:17]} 39. Kh4 {[%clk 00:40:51]} {[%emt 00:00:27]} Rg6 {[%clk 01:02:03]}
{[%emt 00:00:23]} 40. Kh3 {[%clk 00:38:46]} {[%emt 00:02:36]} Ra3 {[%clk
01:02:02]} {[%emt 00:00:31]} 41. Rg8+ {[%clk 00:30:24]} {[%emt 00:09:12]} Kf6
{[%clk 01:02:12]} 42. Rxg6+ {[%clk 00:29:38]} {[%emt 00:01:15]} fxg6 {[%clk
01:01:48]} {[%emt 00:00:54]} 43. Rf8+ {[%clk 00:29:39]} {[%emt 00:00:29]} Kg5
{[%clk 01:02:10]} {[%emt 00:00:07]} 44. Kg2 {[%clk 00:28:43]} {[%emt 00:01:26]}
Bc7 {[%clk 01:02:19]} {[%emt 00:00:22]} 45. Rf7 {[%clk 00:25:57]} {[%emt
00:03:16]} Rxg3+ {[%clk 01:01:31]} {[%emt 00:01:18]} 46. Kf2 {[%clk 00:26:25]}
{[%emt 00:00:02]} Rc3 {[%clk 01:01:20]} {[%emt 00:00:41]} 47. Kg2 {[%clk
00:26:38]} {[%emt 00:00:17]} a5 {[%clk 01:01:29]} {[%emt 00:00:22]} 48. Rf8
{[%clk 00:26:49]} {[%emt 00:00:19]} a4 {[%clk 01:01:47]} {[%emt 00:00:12]} 49.
Ra8 {[%clk 00:27:16]} {[%emt 00:00:03]} a3 {[%clk 01:02:12]} {[%emt 00:00:05]}
50. Kf2 {[%clk 00:27:43]} {[%emt 00:00:04]} Rc2+ {[%clk 01:02:11]} {[%emt
00:00:30]} 51. Ke3 {[%clk 00:28:09]} {[%emt 00:00:03]} a2 {[%clk 01:02:25]}
{[%emt 00:00:17]} 52. Kd3 {[%clk 00:28:37]} {[%emt 00:00:02]} Rg2 {[%clk
01:02:39]} {[%emt 00:00:14]} 53. Kd4 {[%clk 00:28:10]} {[%emt 00:00:59]} Bd8
{[%clk 01:02:28]} {[%emt 00:00:41]} 54. Kd5 {[%clk 00:28:21]} {[%emt 00:00:19]}
Bf6 {[%clk 01:02:42]} {[%emt 00:00:16]} 55. Rxa2 {[%clk 00:28:42]} {[%emt
00:00:10]} Rxa2 {[%clk 01:03:10]} {[%emt 00:00:02]} 56. Kc4 {[%clk 00:29:10]}
{[%emt 00:00:02]} Rd2 {[%clk 01:03:32]} {[%emt 00:00:07]} 57. Kc5 {[%clk
00:29:35]} {[%emt 00:00:06]} Rd4 {[%clk 01:03:09]} {[%emt 00:00:53]} 58. Kc6
{[%clk 00:29:56]} {[%emt 00:00:09]} f4 {[%clk 01:03:31]} {[%emt 00:00:08]} 59.
Kc7 {[%clk 00:30:14]} {[%emt 00:00:12]} f3 {[%clk 01:03:54]} {[%emt 00:00:07]}
60. Kc8 {[%clk 00:30:43]} {[%emt 00:00:02]} f2 {[%clk 01:03:58]} {[%emt
00:00:26]} 61. Kc7 {[%clk 00:31:11]} {[%emt 00:00:02]} f1=Q {[%clk 01:04:09]}
{[%emt 00:00:18]} 62. Kc6 {[%clk 00:31:38]} {[%emt 00:00:04]} Qa6+ {[%clk
01:04:11]} {[%emt 00:00:28]} 63. Kc5 {[%clk 00:31:58]} {[%emt 00:00:10]} Qd6+
{[%clk 01:04:26]} {[%emt 00:00:14]} 64. Kb5 {[%clk 00:32:25]} {[%emt 00:00:04]}
Rb4+ {[%clk 01:04:34]} {[%emt 00:00:21]} 65. Ka5 {[%clk 00:32:48]} {[%emt
00:00:08]} Qb6# {[%clk 01:04:49]} {[%emt 00:00:14]} 0-1

[ePGN "0.1;DGT LiveChess/2.2"]

[Event "Championnat National du Sénégal"]
[Site "Arène National, Pikine, Senegal"]
[Date "????.??.??"]
[Round "5.5"]
[White "Ba, El Hadji Seydou Nourou"]
[Black "CM Wane, Al Hassane"]
[Result "1/2-1/2"]
[TimeControl "01.30 fb .30"]
[WhiteElo "1644"]
[BlackElo "1789"]

1. e4 {[%clk 01:29:04]} {[%emt 00:00:21]} e5 {[%clk 01:30:49]} 2. Nf3 {[%clk
01:29:22]} Nc6 {[%clk 01:31:10]} 3. Bb5 {[%clk 01:29:45]} a6 {[%clk 01:31:13]}
4. Ba4 {[%clk 01:30:11]} Nf6 {[%clk 01:30:11]} 5. O-O {[%clk 01:30:13]} b5
{[%clk 01:30:15]} 6. Bb3 {[%clk 01:30:37]} Bc5 {[%clk 01:30:37]} 7. Nxe5 {[%clk
01:25:23]} Bxf2+ {[%clk 01:22:55]} 8. Rxf2 {[%clk 01:25:17]} Nxe5 {[%clk
01:23:15]} 9. d4 {[%clk 01:23:07]} Nc4 {[%clk 01:21:42]} 10. e5 {[%clk
01:21:26]} Ne4 {[%clk 01:11:25]} 11. Rxf7 {[%clk 01:14:18]} Kxf7 {[%clk
01:11:05]} 12. Qf3+ {[%clk 01:14:34]} Ke8 {[%clk 01:09:17]} 13. Qxe4 {[%clk
01:14:06]} Rb8 14. Qg4 {[%clk 01:08:36]} Qe7 {[%emt 00:00:03]} 15. Nd2 {[%clk
01:07:24]} {[%emt 00:01:38]} d5 {[%clk 01:09:10]} {[%emt 00:00:50]} 16. Qg3
{[%clk 01:05:41]} {[%emt 00:02:13]} Rf8 {[%clk 01:08:40]} {[%emt 00:01:01]} 17.
Nf3 {[%clk 01:04:59]} {[%emt 00:01:10]} Bf5 {[%clk 01:07:58]} {[%emt 00:01:12]}
18. a4 {[%clk 01:03:55]} {[%emt 00:01:35]} b4 {[%clk 01:05:32]} {[%emt
00:02:56]} 19. a5 {[%clk 01:02:23]} {[%emt 00:02:02]} h6 {[%clk 01:02:02]}
{[%emt 00:03:59]} 20. Nd2 {[%clk 00:59:14]} {[%emt 00:03:39]} Be6 {[%clk
00:58:03]} {[%emt 00:04:29]} 21. Nf3 {[%clk 00:54:50]} {[%emt 00:04:54]} c5
{[%clk 00:58:00]} {[%emt 00:00:33]} 22. h3 {[%clk 00:49:46]} {[%emt 00:05:34]}
cxd4 {[%clk 00:58:08]} {[%emt 00:00:23]} 23. Nxd4 {[%clk 00:49:39]} {[%emt
00:00:35]} Qc5 {[%clk 00:57:26]} {[%emt 00:01:13]} 24. c3 {[%clk 00:48:25]}
{[%emt 00:01:44]} bxc3 {[%clk 00:57:45]} {[%emt 00:00:11]} 25. Ba4+ {[%clk
00:48:50]} {[%emt 00:00:05]} Kf7 {[%clk 00:58:01]} {[%emt 00:00:13]} 26. bxc3
{[%clk 00:48:13]} {[%emt 00:01:09]} Kg8 {[%clk 00:49:35]} {[%emt 00:08:55]} 27.
Bxh6 {[%clk 00:45:37]} {[%emt 00:03:06]} Rf7 {[%clk 00:50:02]} {[%emt
00:00:02]} 28. Bxg7 {[%clk 00:44:31]} {[%emt 00:01:36]} Rxg7 {[%clk 00:49:39]}
{[%emt 00:00:53]} 29. Qh4 {[%clk 00:41:15]} {[%emt 00:03:46]} Ne3 {[%clk
00:48:47]} {[%emt 00:01:21]} 30. Qh6 {[%clk 00:34:42]} {[%emt 00:07:04]} Bxh3
{[%clk 00:44:00]} {[%emt 00:05:17]} 31. Qxh3 {[%clk 00:34:07]} {[%emt
00:01:05]} Nxg2 {[%clk 00:44:18]} {[%emt 00:00:12]} 32. Qe6+ {[%clk 00:33:44]}
{[%emt 00:00:53]} Kf8 {[%clk 00:42:19]} {[%emt 00:02:27]} 33. Qf6+ {[%clk
00:18:29]} {[%emt 00:15:46]} Kg8 {[%clk 00:40:46]} {[%emt 00:02:03]} 34. Qe6+
{[%clk 00:18:21]} {[%emt 00:00:39]} Kh8 {[%clk 00:40:19]} {[%emt 00:00:57]} 35.
Qh6+ {[%clk 00:18:26]} {[%emt 00:00:25]} Kg8 {[%clk 00:40:07]} {[%emt
00:00:42]} 36. Qe6+ {[%clk 00:17:22]} {[%emt 00:01:35]} Kf8 {[%emt 00:01:27]}
37. Kh2 Rb2 {[%emt 00:00:13]} 38. Bc2 {[%emt 00:00:13]} 1/2-1/2